Cogmind - Beta 12 @@@ ROGUE MODE // 2024.02.02 @ 08:35:12 Player: Dosh Result: Destroyed by D-53 Grenadier with Mini Grenade Launcher Performance ------------- Evolutions (0) 0 Regions Visited (4) 800 Robots Destroyed (36) 180 Value Destroyed (745) 745 Prototype IDs (25) 500 Alien Tech Used (0) 0 Bonus (300) 300 TOTAL SCORE: 2525 Bonus ------- Aligned with FarCom 300 Cogmind --------- Core Integrity 0/250 Matter 160/300 Energy 88/100 System Corruption 0% Temperature Cool (0) Movement Treading (160) Location -9/Mines Parts ------- > --- POWER (1) -------- (None) > --- PROPULSION (2) --- Improved Treads > --- UTILITY (2) ------ Large Storage Unit > --- WEAPON (2) ------- Light Cannon > --- INVENTORY (15) --- Light Ion Engine Light Treads Improved Treads Improved Treads High-capacity Storage Unit Structural Scanner Seismic Detector EM Pulse Gun Firepult Shotgun Peak State ------------ > --- POWER ------------ Ion Engine > --- PROPULSION ------- Improved Treads Improved Treads > --- UTILITY ---------- Large Storage Unit > --- WEAPON ----------- Shotgun Light Cannon > --- INVENTORY -------- Light Ion Engine Light Treads Improved Treads Improved Treads High-capacity Storage Unit Structural Scanner Seismic Detector EM Pulse Gun Firepult Light Cannon Light Cannon Grenade Launcher Grenade Launcher [Rating: 12] Favorites ----------- Power Ion Engine Engine Ion Engine Propulsion Improved Treads Treads Improved Treads Utility Large Storage Unit Device Improved Heat Sink Storage Large Storage Unit Weapon Light Cannon Energy Gun EM Pulse Gun Ballistic Gun Shotgun Ballistic Cannon Light Cannon Launcher Grenade Launcher Build | -11 -10 -10 -10 -9 ------- Run | Jun Mat Min Exi Min Slots Evolved . | . . . . . Power . | . . . . . Propulsion . | . . . . . Utility . | . . . . . Weapon . | . . . . . Parts Attached 23 | 6 10 . . 7 Power 2 | 1 1 . . . Engine 2 | 1 1 . . . Core . | . . . . . Reactor . | . . . . . Propulsion 7 | 2 5 . . . Treads 7 | 2 5 . . . Leg . | . . . . . Wheel . | . . . . . Hover . | . . . . . Flight . | . . . . . Utility 3 | 1 2 . . . Device 1 | . 1 . . . Storage 2 | 1 1 . . . Processor . | . . . . . Hackware . | . . . . . Protection . | . . . . . Artifact . | . . . . . Weapon 11 | 2 2 . . 7 Energy Gun 3 | 2 1 . . . Energy Cannon . | . . . . . Ballistic Gun 1 | . . . . 1 Ballistic Cannon 5 | . 1 . . 4 Launcher 2 | . . . . 2 Special Weapon . | . . . . . Impact Weapon . | . . . . . Slashing Weapon . | . . . . . Piercing Weapon . | . . . . . Special Melee Weapon . | . . . . . Unidentified Prototypes . | . . . . . Parts Lost 7 | . . . . 7 Power 1 | . . . . 1 Propulsion 1 | . . . . 1 Utility . | . . . . . Weapon 5 | . . . . 5 Highest Loss Streak 6 | . . . . 6 To Critical Strikes . | . . . . . Average Slot Usage (%) 88 | . 93 85 85 84 Engine 13 | . 13 14 14 13 Treads 28 | . 28 28 28 28 Device 3 | . 7 . . . Storage 14 | . 14 14 14 14 Energy Gun 14 | . 18 14 14 . Ballistic Cannon 11 | . 9 14 14 7 Naked Turns . | . . . . . Heaviest Build 35 | 14 35 30 30 31 Greatest Support 46 | 40 46 46 46 46 Greatest Overweight (x) . | . . . . . Average Overweight (x) . | . . . . . Largest Inventory Capacity 15 | 8 15 15 15 15 Average Capacity 12 | 7 9 15 15 15 Most Carried 15 | 2 10 13 15 15 Average Carried 9 | 1 6 11 13 13 Final Capacity 15 | 8 15 15 15 15 Final Carried 15 | 2 10 13 15 11 Class Distribution -------------------- 100% | Mutant Dominant Class ---------------- Mutant | -10/Materials Mutant | -10/Mines Mutant | -10/Exiles Mutant | -9/Mines Resources | -11 -10 -10 -10 -9 ----------- Run | Jun Mat Min Exi Min Matter Collected 640 | 109 404 . . 127 Remotely . | . . . . . Salvage Created 920 | 44 765 . . 111 Parts 61 | 2 57 . . 2 Haulers Intercepted 2 | . 2 . . . Recyclers Shooed 1 | 1 . . . . Parts Field Recycled . | . . . . . Retrieved Matter . | . . . . . Parts Self-Destructed . | . . . . . Prevented . | . . . . . Kills | -11 -10 -10 -10 -9 ------- Run | Jun Mat Min Exi Min Combat Hostiles Destroyed 38 | . 20 . . 18 Guns 12 | . 10 . . 2 Cannons 12 | . 10 . . 2 AOE 14 | . . . . 14 Classes Destroyed 9 | 1 6 . . 2 Worker 3 | . 1 2 . . Tunneler 2 | 2 . . . . Hauler 2 | . 2 . . . Operator 1 | . 1 . . . Watcher 3 | . 3 . . . Swarmer 9 | . 6 . . 3 Grunt 15 | . 14 . . 1 Duelist 1 | . . . . 1 Assembled 13 | . . . . 13 Best Kill Streak 13 | 2 4 1 . 13 Combat Bots Only 13 | . 3 . . 13 Max Kills in Single Turn 4 | 1 2 1 . 4 Gunslinging . | . . . . . Exploded 4 | . . . . 4 Melee . | . . . . . Uniques/NPCs Destroyed . | . . . . . Combat | -11 -10 -10 -10 -9 -------- Run | Jun Mat Min Exi Min Damage Taken 1481 | . 544 . . 937 Core 260 | . 92 . . 168 Absorbed by Shields . | . . . . . Regen/Repaired (Parts) 35 | . 35 . . . Core Remaining (%) 100 | 100 . . . . Volleys Fired 105 | 8 70 . . 27 Largest 2 | 2 2 . . 2 Hottest 100 | 100 100 . . 75 Shots Fired 191 | 16 134 . . 41 Gun 118 | 16 93 . . 9 Cannon 60 | . 41 . . 19 Launcher 13 | . . . . 13 Special . | . . . . . Kinetic 67 | . 41 . . 26 Thermal 91 | 16 75 . . . Explosive 13 | . . . . 13 Electromagnetic 20 | . 18 . . 2 Robot Hit Streak 13 | 4 12 . . 13 Robot Miss Streak 5 | 4 5 . . 4 Penetration Max . | . . . . . Secondary Targets 2 | . 2 . . . Max Gunslinging Chain 1 | . 1 . . . Shots Hit Robots 116 | 10 79 . . 27 Core Hits 84 | 2 33 1 . 48 Critical Kills . | . . . . . Critical Parts Destroyed . | . . . . . Critical Strikes 14 | 3 11 . . . Burn 12 | 3 9 . . . Blast 2 | . 2 . . . Melee Attacks . | . . . . . Impact . | . . . . . Slashing . | . . . . . Piercing . | . . . . . Sneak Attacks . | . . . . . Combat Hostiles . | . . . . . Follow-up Attacks . | . . . . . Damage Inflicted 2838 | 138 1246 43 . 1411 Guns 1005 | 138 758 . . 109 Cannons 682 | . 422 . . 260 Explosions 1082 | . 53 . . 1029 Melee . | . . . . . Ramming 69 | . 13 43 . 13 Kinetic 779 | . 422 . . 357 Thermal 836 | 138 698 . . . Explosive 1029 | . . . . 1029 Electromagnetic 125 | . 113 . . 12 Impact . | . . . . . Slashing . | . . . . . Piercing . | . . . . . Highest Corruption . | . . . . . Average Corruption . | . . . . . Corruption Purged . | . . . . . Corruption Blocked . | . . . . . Overload Shots . | . . . . . Overflow Damage 93 | . 10 . . 83 Projectiles 31 | . 10 . . 21 Explosions 62 | . . . . 62 Melee . | . . . . . Knockbacks 5 | . 2 . . 3 Impact 1 | . 1 . . . Kinetic 4 | . 1 . . 3 Secondary . | . . . . . Self-Inflicted Damage 35 | . . . . 35 Shots 2 | . . . . 2 Rammed 10 | . 3 6 . 1 Targets Rammed 14 | . 5 8 . 1 Kicked . | . . . . . Crushed 4 | . 2 2 . . Highest Temperature 312 | 312 234 . . 64 Average Temperature 74 | 177 59 . . 27 Received Heat Transfer 306 | . 240 . . 66 Siege Activations . | . . . . . Robots Corrupted . | . . . . . Combat Hostiles . | . . . . . Parts Fried . | . . . . . Impact Corruptions . | . . . . . Robots Melted . | . . . . . Combat Hostiles . | . . . . . Parts Melted 9 | 4 5 . . . Heat Transferred 3282 | 629 2653 . . . Parts Sabotaged . | . . . . . Parts Stolen . | . . . . . Parts Stripped . | . . . . . Power Chain Reactions 1 | . 1 . . . Missiles Intercepted . | . . . . . Alert | -11 -10 -10 -10 -9 ------- Run | Jun Mat Min Exi Min Peak Influence 270 | 10 270 61 . 154 Initial 61 | . 6 61 . . Average 86 | 1 122 32 . 97 Maximum Alert Level 1 | . 1 . . . Low Security (%) 92 | 100 86 100 . 100 Level 1 7 | . 13 . . . Level 2 . | . . . . . Level 3 . | . . . . . Level 4 . | . . . . . Level 5 . | . . . . . High Security . | . . . . . Max Security . | . . . . . Squads Dispatched 4 | . 4 . . . Investigation 3 | . 3 . . . Extermination . | . . . . . Reinforcement 1 | . 1 . . . Assault . | . . . . . Garrison . | . . . . . Intercept . | . . . . . Searches Triggered . | . . . . . Construction Impeded . | . . . . . Haulers Reinforced . | . . . . . Active Scanning Responses . | . . . . . Cargo Convoy Interrupts . | . . . . . Stealth | -11 -10 -10 -10 -9 --------- Run | Jun Mat Min Exi Min Distress Signals . | . . . . . Communications Jammed . | . . . . . Distress Signals . | . . . . . Times Spotted 49 | . 25 . . 24 Peak Tracking Total 16 | . 4 . . 16 Tactical Retreats 1 | . . . . 1 Traps | -11 -10 -10 -10 -9 ------- Run | Jun Mat Min Exi Min Traps Triggered . | . . . . . Indirectly . | . . . . . Trap Hack Attempts . | . . . . . Triggered . | . . . . . Disarmed . | . . . . . Reprogrammed . | . . . . . Reused . | . . . . . Traps Extracted . | . . . . . Installed . | . . . . . Triggered . | . . . . . Exploded 1 | . . . 1 . Machines | -11 -10 -10 -10 -9 ---------- Run | Jun Mat Min Exi Min Machines Disabled . | . . . . . Max in Single Turn . | . . . . . Machines Repaired . | . . . . . Machines Sabotaged . | . . . . . Overloaded Fab Kills . | . . . . . Hacking | -11 -10 -10 -10 -9 --------- Run | Jun Mat Min Exi Min Machines Accessed 11 | . 9 . 2 . Terminals 6 | . 6 . . . Fabricators . | . . . . . Repair Stations 1 | . 1 . . . Recycling Units 2 | . 2 . . . Scanalyzers . | . . . . . Garrison Access . | . . . . . Total Hacks 28 | . 23 . 5 . Successful 18 | . 13 . 5 . Failed 9 | . 9 . . . Catastrophic 1 | . 1 . . . Database Lockouts 1 | . 1 . . . Manual 19 | . 18 . 1 . Terminals 18 | . 18 . . . Fabricators . | . . . . . Repair Stations 3 | . 3 . . . Recycling Units 2 | . 2 . . . Scanalyzers . | . . . . . Garrison Access . | . . . . . Terminal Hacks 10 | . 5 . 5 . Record 4 | . . . 4 . Robot Analysis 3 | . 3 . . . Prototype ID Bank 1 | . 1 . . . Hauler Manifests 1 | . 1 . . . EX-Prototype ID Bank 1 | . . . 1 . Fabricator Hacks . | . . . . . Repair Station Hacks 2 | . 2 . . . Scan Component 1 | . 1 . . . Repair 1 | . 1 . . . Recycling Unit Hacks . | . . . . . Scanalyzer . | . . . . . Garrison Access Hacks . | . . . . . Unauthorized Hacks 6 | . 6 . . . Terminals 4 | . 4 . . . Botnet 2 | . 2 . . . Disrupt 1 | . 1 . . . Operators 1 | . 1 . . . Fabricators . | . . . . . Repair Stations . | . . . . . Recycling Units 2 | . 2 . . . Tunnel 2 | . 2 . . . Scanalyzers . | . . . . . Garrison Access . | . . . . . Data Cores Recovered . | . . . . . Used . | . . . . . Hacking Detections 6 | . 6 . . . Full Trace Events 2 | . 2 . . . Feedback Events . | . . . . . Feedback Blocked . | . . . . . Robot Schematics Acquired . | . . . . . Robots Built . | . . . . . Authchips . | . . . . . Time . | . . . . . Total Robot Build Rating . | . . . . . Part Schematics Acquired . | . . . . . Parts Built . | . . . . . Authchips . | . . . . . Time . | . . . . . Total Part Build Rating . | . . . . . Parts Repaired 1 | . 1 . . . Time 26 | . 26 . . . Parts Recycled . | . . . . . Recycled Matter . | . . . . . Retrieved Matter . | . . . . . Retrieved Components . | . . . . . Parts Scanalyzed . | . . . . . Part Schematics Acquired . | . . . . . Parts Damaged . | . . . . . Bothacking | -11 -10 -10 -10 -9 ------------ Run | Jun Mat Min Exi Min Used RIF Installer . | . . . . . Robots Hacked . | . . . . . Non-combat . | . . . . . Combat . | . . . . . Robot Hacks Applied . | . . . . . Relay Couplers Released . | . . . . . Fabnet Peak Effective % . | . . . . . Robots Rewired . | . . . . . Allies Hacked . | . . . . . Hacks Repelled . | . . . . . Allies | -11 -10 -10 -10 -9 -------- Run | Jun Mat Min Exi Min Total Allies 3 | . . 3 . . Largest Group 3 | . . 3 2 . Highest-Rated Group 80 | . . 80 49 . Highest-Rated Ally 31 | . . 31 31 . Total Orders . | . . . . . Ally Attacks . | . . . . . Total Damage . | . . . . . Kills . | . . . . . Allies Corrupted . | . . . . . Allies Melted . | . . . . . Intel | -11 -10 -10 -10 -9 ------- Run | Jun Mat Min Exi Min Robot Analysis Total 3 | . 3 . . . Derelict Logs Recovered 3 | . . 1 . 2 Drone Launches . | . . . . . Drone Recoveries . | . . . . . Exploration | -11 -10 -10 -10 -9 ------------- Run | Jun Mat Min Exi Min Turns Passed 3104 | 122 1499 826 427 230 Spaces Moved 1693 | 60 768 507 267 91 Core 7 | 7 . . . . Treads 1686 | 53 768 507 267 91 Legs . | . . . . . Wheels . | . . . . . Hover . | . . . . . Flight . | . . . . . Fastest Speed 50 | 50 160 160 160 160 Average Speed 159 | 147 160 160 160 160 Slowest Speed 160 | 160 160 160 160 160 Overloaded Moves . | . . . . . Propulsion Burnouts . | . . . . . Robots Hopped . | . . . . . Cave-ins Triggered . | . . . . . Exploration Rate (%) 58 | 3 96 98 61 36 Regions Visited 4 Branch Regions 3 Pre-discovered Areas 3 | . 2 . 1 . Known Exits Taken . | . . . . . Unknown Exits Taken 4 | 1 1 1 1 . Scrap Searched 1 | . . 1 . . Spaces Dug . | . . . . . Terrain Destroyed 37 | . 3 . . 34 Melee . | . . . . . Projectile . | . . . . . AOE 37 | . 3 . . 34 Terrain Rammed . | . . . . . Walls Destroyed . | . . . . . Machines Disabled . | . . . . . Actions | -11 -10 -10 -10 -9 --------- Run | Jun Mat Min Exi Min Total 1896 | 75 904 517 267 133 Wait 36 | . 29 . . 7 Move 1689 | 59 767 506 266 91 Hop . | . . . . . Pick Up 16 | 2 10 3 1 . Fast Attach 11 | 6 5 . . . Attach 4 | . . . . 4 Detach 2 | . 2 . . . Swap 8 | . 5 . . 3 Drop 11 | . 11 . . . Fire 105 | 8 70 . . 27 Melee . | . . . . . Ram . | . . . . . Kick . | . . . . . Crush 14 | . 5 8 . 1 Escape Stasis . | . . . . . Rewire . | . . . . . Trap . | . . . . . Miscellaneous . | . . . . . Route ------- -11/Junkyard -10/Materials (discovered 4 exits: [*Mat x3] / [*Min]) -10/Mines (discovered 3 exits: [*Mat x2] / *Exi) -10/Exiles -9/Mines (discovered 1 exit: [*Mat]) History --------- Turn | Location | Event 4 | -11/Junkyard | Discovered new exit (range 14) 123 | -11/Junkyard | Entered Materials 307 | -10/Materials | Build established: Mutant 532 | -10/Materials | Discovered new exit (range 9) 651 | -10/Materials | Discovered new exit (range 16) 740 | -10/Materials | Central database locked down 966 | -10/Materials | Discovered new exit (range 7) 1329 | -10/Materials | Discovered new exit (range 9) 1451 | -10/Materials | Repaired Ion Engine 1622 | -10/Materials | Entered Mines 1845 | -10/Mines | Discovered new exit (range 11) 2098 | -10/Mines | Received a Mining Laser from a helpful Derelict 2218 | -10/Mines | Discovered new exit (range 15) 2253 | -10/Mines | Learned Materials terminal intel 2429 | -10/Mines | Deemed a non-threat by the Exiles lab entrance 2430 | -10/Mines | Discovered new exit (range 5) 2448 | -10/Mines | Entered Exiles 2448 | -10/Exiles | Accompanied by 2 allies 2478 | -10/Exiles | Led the pair of lost Derelicts to a safe place 2488 | -10/Exiles | Met 8R-AWN 2514 | -10/Exiles | Met EX-HEX 2578 | -10/Exiles | Met EX-BIN 2604 | -10/Exiles | Met EX-DEC 2612 | -10/Exiles | Learned location of Zion (-7) 2660 | -10/Exiles | Aligned with FarCom system 2661 | -10/Exiles | Given EX-Vault access code 2700 | -10/Exiles | Opened EX-Vault 2719 | -10/Exiles | Found Firepult 2752 | -10/Exiles | Warned to stay clear of 0b10 Research branches 2766 | -10/Exiles | Exiles lab attacked by MAIN.C 2859 | -10/Exiles | Discovered new exit (range 12) 2875 | -10/Exiles | Left Exiles lab with Firepult 2875 | -10/Exiles | Entered Mines 2933 | -9/Mines | Learned Materials terminal intel 2939 | -9/Mines | Discovered new exit (range 14) 2940 | -9/Mines | Learned Materials terminal intel 3052 | -9/Mines | Assembled infested the area 3088 | -9/Mines | Core integrity fell below 50% 3090 | -9/Mines | Destroyed 13 combat bots 3099 | -9/Mines | Core integrity fell below 20% 3105 | -9/Mines | Destroyed by D-53 Grenadier with Mini Grenade Launcher Last Messages --------------- 03067_ Destroyed Asb. Hover Unit. 03067_ as-34342 destroyed. 03067_ as-40632 destroyed. 03069_ Destroyed Asb. Hover Unit. 03069_ as-89334 destroyed. 03069_ as-78355 destroyed. 03069_ as-16365 destroyed. 03069_ as-86691 destroyed. 03072_ as-38295 destroyed. 03077_ as-30085 destroyed. 03092_ The unstable cave ceiling collapses. 03094_ Grenade Launcher destroyed. 03096_ The unstable cave ceiling collapses. 03096_ Ion Engine destroyed. 03097_ D-53 Grenadier knocked back. 03099_ The unstable cave ceiling collapses. 03101_ Lgt. Cannon destroyed. 03103_ Imp. Treads destroyed. 03103_ Lgt. Cannon destroyed. 03103_ R-06 Scavenger collects Mak. Leg. Map ----- +----------------------------------------------------+ | | | | | | | | | | | | | | | | | | | | | | | | | | | | | | | | | | | | | | | | | ????????????????????### # ##????????????????????? | | ????????????????????# ##???????????????????? | | ????????????????????# ###?????????????????? | | ???????????????###### ###???????????????? | | ????????????# # ##??????????????? | | ????????##### @ #??????????????? | | ????????# #??????????????? | | ???????## ##??????????????? | | ?????? ##???????????????? | | ?????? ##???????????????? | | ?????? % #???????????????? | | ?????? dd ##??????????????? | | ?????? #??????????????? | | ??????? % #??????????????? | | ???????? ###### % #??????????????? | | ???????????????# % % ##??????????????? | | ???????????????## r ##???????????????? | | ????????????????# # # #????????????????? | | ????????????????# ## #????????????????? | | ???????????????? ## ##????????????????? | | ???????????????## ###?????????????????? | | ???????????????? ##?#####???####??????? | | ?????????????????# #?## #### ##?????? | | ??????????????????# ### ## ##????? | | ??????????????????# ### ##???? | | ??????????????????## ### ##??? | | ???????????????????## ##?# #??? | | ????????????????????# ## #???# #??? | | ????????????????????# ?# #????# < #???? | | ????????????????????# ## ####??# #????? | +----------------------------------------------------+ Best States ------------- Heat Dissipation 39 Energy Generation 10 Energy Capacity 250 Matter Stores 300 Matter Capacity 300 Sight Range 16 Terrain Scan Density 10 Evasion (%) 40 Recoil Reduction 2 Item Schematics ----------------- None Robot Schematics ------------------ None Fabricated ------------ Nothing Alien Tech Used ----------------- None Achievements -------------- None Challenges ------------ None Game ------ Seed FlakLatentDissipator Manual? 0 Play Time 00:17:57 Cumulative 153.4 hours Start 2024.02.02 @ 08:17:43 End 2024.02.02 @ 08:35:12 Sessions 1 Manual Loads 0 Difficulty Rogue Special Mode None Game No. 141 Rogue 141 Adventurer 0 Explorer 0 Win Type - Total 2 Types 2/0/0/0/0/0/0/0/0 Lore% 59 Gallery% 67 Achievement% 58 Wizard Run 0 Options --------- ASCII 0 Keyboard 1 Movement Numpad Keybinds 0 Fullscreen 2 Font 18/SmallcapsGlow Map View 76x50 Tactical HUD 1 Map Filters NONE Filters NONE Steam 1 RUN: cd95123e-d0c8-45ba-b8a8-7a6ac5109faa